fUSD/lending_fUSD_20260601
["ID","MTS","AMOUNT","RATE_DAILY","PERIOD"]
[423673230,1780293067000,-2500.0,0.00039,30]
[423673239,1780293067000,-12313.68832939,0.00039,120]
[423673228,1780293067000,-2500.0,0.00039,30]
[423673236,1780293067000,-31374.27771175,0.00039,2]
[423673224,1780293067000,-157.88,0.0003899,120]
[423673232,1780293067000,-2500.0,0.00039,30]
[423673251,1780293067000,-1000.0,0.00039,120]
[423673245,1780293067000,-18657.56980009,0.00039,120]
[423673247,1780293067000,-302.03669638,0.00039,120]
[423673250,1780293067000,-300.99112363,0.00039,120]
[423673234,1780293067000,-89431.0,0.00039,7]
[423673244,1780293067000,-3717.57513337,0.00039,2]
[423673246,1780293067000,-826.77,0.00039,60]
[423673243,1780293067000,-319.0,0.00039,120]
[423673249,1780293067000,-209.73,0.00039,31]
[423673241,1780293067000,-372.25517906,0.00039,60]
[423673240,1780293067000,-10657.30296858,0.00039,2]
[423673235,1780293067000,-2500.0,0.00039,30]
[423673242,1780293067000,-465.7089497,0.00039,120]
[423673325,1780293068000,-320.636806,0.000392,2]
[423673318,1780293068000,-2134.55677157,0.00039194,2]
[423673319,1780293068000,-1448.51110244,0.00039194,2]
[423673317,1780293068000,-1543.28342961,0.00039194,2]
[423673314,1780293068000,-2422.03582606,0.00039194,2]
[423673316,1780293068000,-1425.77092775,0.00039194,2]
[423673321,1780293068000,-7194.09,0.000392,2]
[423673323,1780293068000,-344.636811,0.000392,2]
[423673315,1780293068000,-2603.199067,0.00039194,2]
[423673312,1780293068000,-350.0,0.00039191,58]
[423673320,1780293068000,-1441.59809235,0.00039194,2]
[423673335,1780293068000,-3000.0,0.00039217,30]
[423673327,1780293068000,-323.636806,0.000392,2]
[423673333,1780293068000,-1591.0,0.0003921,11]
[423673336,1780293068000,-3000.0,0.00039217,30]
[423673326,1780293068000,-326.636806,0.000392,2]
[423673324,1780293068000,-323.636806,0.000392,2]
[423673330,1780293068000,-18952.17072741,0.000392,120]
[423673331,1780293068000,-350.0,0.00039202,8]
[423673332,1780293068000,-155.16,0.00039209,120]
[423673328,1780293068000,-320.636806,0.000392,2]
[423673329,1780293068000,-524.77508876,0.000392,7]
[423673338,1780293068000,-3000.0,0.00039217,30]
[423673337,1780293068000,-3000.0,0.00039217,30]
[423673340,1780293068000,-3000.0,0.00039217,30]
[423673313,1780293068000,-2513.38991593,0.00039194,2]
[423673334,1780293068000,-350.0,0.00039211,58]
[423673311,1780293068000,-1591.0,0.00039185,11]
[423673293,1780293068000,-387.0,0.00039114,2]
[423673310,1780293068000,-2319.0,0.00039184,11]
[423673341,1780293068000,-3000.0,0.00039217,30]
[423673288,1780293068000,-298.861019,0.000391,2]
[423673287,1780293068000,-301.861019,0.000391,2]
[423673285,1780293068000,-237.64,0.000391,8]
[423673284,1780293068000,-350.0,0.00039077,57]
[423673286,1780293068000,-316.861021,0.000391,2]
[423673282,1780293068000,-350.0,0.00039051,56]
[423673283,1780293068000,-369.78966585,0.00039072,2]
[423673289,1780293068000,-304.861019,0.000391,2]
[423673291,1780293068000,-12000.0,0.000391,30]
[423673292,1780293068000,-350.0,0.00039101,57]
[423673294,1780293068000,-3299.07571999,0.00039116,2]
[423673296,1780293068000,-387.0,0.00039129,2]
[423673299,1780293068000,-350.0,0.00039148,57]
[423673298,1780293068000,-158.00653204,0.0003914,2]
[423673290,1780293068000,-301.861019,0.000391,2]
[423673297,1780293068000,-387.0,0.00039138,2]
[423673295,1780293068000,-350.0,0.00039125,57]
[423673301,1780293068000,-456.03,0.00039162,30]
[423673300,1780293068000,-2000.0,0.00039159,120]
[423673303,1780293068000,-1591.0,0.00039176,11]
[423673304,1780293068000,-387.0,0.00039178,2]
[423673307,1780293068000,-2319.0,0.00039184,11]
[423673306,1780293068000,-2353.0,0.00039181,11]
[423673309,1780293068000,-164.0,0.00039184,11]
[423673305,1780293068000,-1591.0,0.00039179,11]
[423673302,1780293068000,-350.0,0.0003917,58]
[423673308,1780293068000,-1603.0,0.00039184,11]
[423673339,1780293068000,-3000.0,0.00039217,30]
[423673322,1780293068000,-151.0,0.000392,120]
[423673348,1780293068000,-350.0,0.00039249,58]
[423673381,1780293068000,-150.0,0.00039339,120]
[423673376,1780293068000,-350.0,0.00039331,59]
[423673385,1780293068000,-178.106587,0.00039349,120]
[423673384,1780293068000,-178.106587,0.00039349,120]
[423673375,1780293068000,-2030.8556834,0.0003932,30]
[423673373,1780293068000,-350.0,0.00039316,59]
[423673378,1780293068000,-229.74387908,0.00039332,120]
[423673377,1780293068000,-160.27769402,0.00039332,120]
[423673382,1780293068000,-350.0,0.00039345,60]
[423673383,1780293068000,-346.97,0.00039349,30]
[423673380,1780293068000,-387.0,0.00039334,2]
[423673379,1780293068000,-222.3114234,0.00039332,120]
[423673397,1780293068000,-200.0,0.0003937,120]
[423673386,1780293068000,-178.106587,0.00039349,120]
[423673388,1780293068000,-178.106587,0.00039349,120]
[423673390,1780293068000,-24208.37015057,0.00039353,2]
[423673389,1780293068000,-278.31429005,0.00039353,120]
[423673392,1780293068000,-5000.0,0.00039361,2]
[423673393,1780293068000,-5000.0,0.00039361,2]
[423673396,1780293068000,-200.0,0.0003937,120]
[423673391,1780293068000,-350.0,0.00039359,60]
[423673394,1780293068000,-250.0,0.00039361,2]
[423673395,1780293068000,-250.0,0.00039361,2]
[423673399,1780293068000,-258.16,0.0003937,120]
[423673401,1780293068000,-6070.0,0.00039379,120]
[423673400,1780293068000,-350.0,0.00039372,60]
[423673347,1780293068000,-1476.76,0.00039243,120]
[423673374,1780293068000,-387.0,0.00039318,2]
[423673370,1780293068000,-350.0,0.000393,59]
[423673387,1780293068000,-178.106587,0.00039349,120]
[423673365,1780293068000,-350.0,0.00039284,59]
[423673368,1780293068000,-221.0,0.000393,120]
[423673346,1780293068000,-350.0,0.0003923,58]
[423673344,1780293068000,-3000.0,0.00039217,30]
[423673343,1780293068000,-3000.0,0.00039217,30]
[423673345,1780293068000,-2137.44,0.00039217,30]
[423673350,1780293068000,-350.0,0.00039267,59]
[423673349,1780293068000,-6200.0,0.0003925,90]
[423673352,1780293068000,-500.0,0.00039273,90]
[423673356,1780293068000,-500.0,0.00039273,90]
[423673353,1780293068000,-500.0,0.00039273,90]
[423673357,1780293068000,-500.0,0.00039273,90]
[423673358,1780293068000,-500.0,0.00039273,90]
[423673351,1780293068000,-488.72093539,0.00039273,90]
[423673355,1780293068000,-500.0,0.00039273,90]
[423673342,1780293068000,-3000.0,0.00039217,30]
[423673398,1780293068000,-200.0,0.0003937,120]
[423673359,1780293068000,-500.0,0.00039273,90]
[423673360,1780293068000,-500.0,0.00039273,90]
[423673366,1780293068000,-387.0,0.00039286,2]
[423673364,1780293068000,-20841.81055714,0.00039282,2]
[423673361,1780293068000,-500.0,0.00039273,90]
[423673369,1780293068000,-100336.05336497,0.000393,30]
[423673362,1780293068000,-500.0,0.00039273,90]
[423673371,1780293068000,-387.0,0.00039304,2]
[423673354,1780293068000,-500.0,0.00039273,90]
[423673372,1780293068000,-387.0,0.00039304,2]
[423673367,1780293068000,-253.18,0.00039289,2]
[423673363,1780293068000,-500.0,0.00039273,90]
[423673437,1780293069000,-151.0,0.00039393,30]
[423673439,1780293069000,-151.0,0.00039393,30]
[423673432,1780293069000,-207.923287,0.00039393,30]
[423673446,1780293069000,-248.410412,0.00039393,30]
[423673447,1780293069000,-1254.781048,0.00039393,30]
[423673442,1780293069000,-248.410412,0.00039393,30]
[423673428,1780293069000,-207.923287,0.00039393,30]
[423673440,1780293069000,-151.0,0.00039393,30]
[423673438,1780293069000,-151.0,0.00039393,30]
[423673436,1780293069000,-151.0,0.00039393,30]
[423673431,1780293069000,-151.0,0.00039393,30]
[423673443,1780293069000,-151.0,0.00039393,30]
[423673441,1780293069000,-1254.781048,0.00039393,30]
[423673445,1780293069000,-201.927003,0.00039393,30]
[423673458,1780293069000,-895.4448,0.00039393,30]
[423673449,1780293069000,-1254.781055,0.00039393,30]
[423673459,1780293069000,-895.444808,0.00039393,30]
[423673448,1780293069000,-248.410412,0.00039393,30]
[423673454,1780293069000,-151.0,0.00039393,30]
[423673451,1780293069000,-151.0,0.00039393,30]
[423673450,1780293069000,-248.410419,0.00039393,30]
[423673457,1780293069000,-895.4448,0.00039393,30]
[423673453,1780293069000,-151.0,0.00039393,30]
[423673455,1780293069000,-895.4448,0.00039393,30]
[423673452,1780293069000,-151.0,0.00039393,30]
[423673456,1780293069000,-222.459813,0.00039393,30]
[423673460,1780293069000,-1206.406698,0.00039393,30]
[423673444,1780293069000,-1254.781048,0.00039393,30]
[423673429,1780293069000,-650.148344,0.00039393,30]
[423673410,1780293069000,-337.005297,0.00039393,30]
[423673430,1780293069000,-207.923287,0.00039393,30]
[423673462,1780293069000,-1206.406698,0.00039393,30]
[423673409,1780293069000,-337.005297,0.00039393,30]
[423673402,1780293069000,-387.0,0.00039385,2]
[423673404,1780293069000,-163.0,0.0003939,120]
[423673406,1780293069000,-3051.214858,0.00039393,30]
[423673403,1780293069000,-350.0,0.00039385,60]
[423673405,1780293069000,-3051.214858,0.00039393,30]
[423673407,1780293069000,-3051.214858,0.00039393,30]
[423673408,1780293069000,-3051.21485,0.00039393,30]
[423673411,1780293069000,-337.005297,0.00039393,30]
[423673414,1780293069000,-2081.898834,0.00039393,30]
[423673418,1780293069000,-1409.269871,0.00039393,30]
[423673413,1780293069000,-2081.898834,0.00039393,30]
[423673427,1780293069000,-650.148347,0.00039393,30]
[423673419,1780293069000,-1516.330132,0.00039393,30]
[423673416,1780293069000,-2081.898831,0.00039393,30]
[423673420,1780293069000,-1409.269871,0.00039393,30]
[423673417,1780293069000,-1516.330132,0.00039393,30]
[423673421,1780293069000,-1516.330132,0.00039393,30]
[423673412,1780293069000,-337.005298,0.00039393,30]
[423673423,1780293069000,-1516.33013,0.00039393,30]
[423673422,1780293069000,-1409.269871,0.00039393,30]
[423673433,1780293069000,-151.0,0.00039393,30]
[423673425,1780293069000,-650.148347,0.00039393,30]
[423673424,1780293069000,-1409.269872,0.00039393,30]
[423673434,1780293069000,-151.0,0.00039393,30]
[423673426,1780293069000,-650.148347,0.00039393,30]
[423673435,1780293069000,-207.923284,0.00039393,30]
[423673415,1780293069000,-2081.898834,0.00039393,30]
[423673464,1780293069000,-1206.406694,0.00039393,30]
[423673463,1780293069000,-1206.406698,0.00039393,30]
[423673526,1780293069000,-756.37702,0.00039393,30]
[423673486,1780293069000,-222.099298,0.00039393,30]
[423673500,1780293069000,-163.677317,0.00039393,30]
[423673506,1780293069000,-175.50994,0.00039393,30]
[423673510,1780293069000,-151.0,0.00039393,15]
[423673507,1780293069000,-213.112392,0.00039393,30]
[423673508,1780293069000,-175.509942,0.00039393,30]
[423673509,1780293069000,-151.0,0.00039393,30]
[423673511,1780293069000,-151.0,0.00039393,30]
[423673512,1780293069000,-151.0,0.00039393,15]
[423673499,1780293069000,-163.677313,0.00039393,30]
[423673501,1780293069000,-213.112387,0.00039393,30]
[423673505,1780293069000,-213.112387,0.00039393,30]
[423673503,1780293069000,-213.112387,0.00039393,30]
[423673490,1780293069000,-151.0,0.00039393,30]
[423673502,1780293069000,-175.50994,0.00039393,30]
[423673515,1780293069000,-208.33154,0.00039393,30]
[423673514,1780293069000,-151.0,0.00039393,15]
[423673523,1780293069000,-151.0,0.00039393,30]
[423673524,1780293069000,-151.0,0.00039393,30]
[423673522,1780293069000,-151.0,0.00039393,30]
[423673516,1780293069000,-151.0,0.00039393,30]
[423673518,1780293069000,-151.0,0.00039393,30]
[423673521,1780293069000,-151.0,0.00039393,30]
[423673520,1780293069000,-208.331536,0.00039393,30]
[423673517,1780293069000,-208.33154,0.00039393,30]
[423673519,1780293069000,-208.33154,0.00039393,30]
[423673465,1780293069000,-286.315523,0.00039393,30]
[423673525,1780293069000,-151.0,0.00039393,30]
[423673513,1780293069000,-151.0,0.00039393,30]
[423673493,1780293069000,-151.0,0.00039393,30]
[423673504,1780293069000,-175.50994,0.00039393,30]
[423673498,1780293069000,-151.0,0.00039393,30]
[423673466,1780293069000,-286.315523,0.00039393,30]
[423673497,1780293069000,-163.677313,0.00039393,30]
[423673469,1780293069000,-234.588202,0.00039393,30]
[423673468,1780293069000,-286.315523,0.00039393,30]
[423673471,1780293069000,-234.588202,0.00039393,30]
[423673467,1780293069000,-151.0,0.00039393,30]
[423673470,1780293069000,-286.315524,0.00039393,30]
[423673472,1780293069000,-234.588202,0.00039393,30]
[423673484,1780293069000,-1837.526956,0.00039393,30]
[423673474,1780293069000,-151.0,0.00039393,30]
[423673473,1780293069000,-1837.526955,0.00039393,30]
[423673476,1780293069000,-151.0,0.00039393,30]
[423673475,1780293069000,-1335.490966,0.00039393,30]
[423673477,1780293069000,-234.588205,0.00039393,30]
[423673478,1780293069000,-1837.526955,0.00039393,30]
[423673461,1780293069000,-153.806224,0.00039393,20]
[423673480,1780293069000,-151.0,0.00039393,30]
[423673483,1780293069000,-1335.49096,0.00039393,30]
[423673494,1780293069000,-222.09929,0.00039393,30]
[423673489,1780293069000,-222.099298,0.00039393,30]
[423673491,1780293069000,-151.0,0.00039393,30]
[423673496,1780293069000,-151.0,0.00039393,30]
[423673492,1780293069000,-222.099298,0.00039393,30]
[423673487,1780293069000,-151.0,0.00039393,30]
[423673488,1780293069000,-151.0,0.00039393,30]
[423673485,1780293069000,-151.0,0.00039393,30]
[423673481,1780293069000,-1837.526955,0.00039393,30]
[423673479,1780293069000,-1335.490966,0.00039393,30]
[423673482,1780293069000,-1335.490966,0.00039393,30]
[423673495,1780293069000,-163.677313,0.00039393,30]
[423673568,1780293070000,-206.100604,0.000394,30]
[423673567,1780293070000,-206.100604,0.000394,30]
[423673565,1780293070000,-151.0,0.000394,30]
[423673552,1780293070000,-1187.603808,0.000394,23]
[423673566,1780293070000,-151.0,0.000394,30]
[423673553,1780293070000,-151.0,0.000394,30]
[423673563,1780293070000,-151.0,0.000394,30]
[423673558,1780293070000,-151.0,0.000394,30]
[423673554,1780293070000,-1398.382341,0.000394,30]
[423673557,1780293070000,-1398.382346,0.000394,30]
[423673569,1780293070000,-206.100604,0.000394,30]
[423673564,1780293070000,-151.0,0.000394,30]
[423673570,1780293070000,-206.10061,0.000394,30]
[423673577,1780293070000,-1247.56849,0.000394,30]
[423673571,1780293070000,-157.284037,0.000394,30]
[423673573,1780293070000,-157.284037,0.000394,30]
[423673574,1780293070000,-157.284034,0.000394,30]
[423673576,1780293070000,-1247.56849,0.000394,30]
[423673575,1780293070000,-1247.56849,0.000394,30]
[423673579,1780293070000,-194.674,0.000394,40]
[423673578,1780293070000,-1247.568493,0.000394,30]
[423673580,1780293070000,-1465.73406139,0.00039414,2]
[423673581,1780293070000,-1465.73406139,0.00039414,2]
[423673583,1780293070000,-500.0,0.00039414,4]
[423673585,1780293070000,-434.0,0.00039421,10]
[423673582,1780293070000,-158.00653204,0.00039414,2]
[423673559,1780293070000,-945.153213,0.000394,30]
[423673572,1780293070000,-157.284037,0.000394,30]
[423673555,1780293070000,-1398.382341,0.000394,30]
[423673584,1780293070000,-615.0,0.00039418,15]
[423673550,1780293070000,-235.28,0.000394,23]
[423673531,1780293070000,-271.552087,0.00039393,30]
[423673536,1780293070000,-271.552087,0.00039393,30]
[423673532,1780293070000,-151.0,0.00039393,30]
[423673527,1780293070000,-271.777483,0.00039393,30]
[423673535,1780293070000,-151.0,0.00039393,30]
[423673529,1780293070000,-151.0,0.00039393,30]
[423673533,1780293070000,-756.377013,0.00039393,30]
[423673528,1780293070000,-756.37702,0.00039393,30]
[423673530,1780293070000,-756.37702,0.00039393,30]
[423673534,1780293070000,-271.552087,0.00039393,30]
[423673537,1780293070000,-68923.37868645,0.00039393,2]
[423673538,1780293070000,-68923.37868645,0.00039393,2]
[423673542,1780293070000,-255.72229011,0.00039393,2]
[423673549,1780293070000,-869291.93433609,0.000394,15]
[423673539,1780293070000,-68923.37868645,0.00039393,2]
[423673548,1780293070000,-150.0,0.000394,120]
[423673541,1780293070000,-255.72229011,0.00039393,2]
[423673540,1780293070000,-68923.37868645,0.00039393,2]
[423673546,1780293070000,-284.343828,0.000394,2]
[423673543,1780293070000,-285.85439321,0.00039397,14]
[423673545,1780293070000,-287.343828,0.000394,2]
[423673544,1780293070000,-299.343828,0.000394,2]
[423673547,1780293070000,-10050.46900491,0.000394,120]
[423673551,1780293070000,-235.28,0.000394,23]
[423673560,1780293070000,-945.153213,0.000394,30]
[423673561,1780293070000,-945.153213,0.000394,30]
[423673562,1780293070000,-945.153204,0.000394,30]
[423673556,1780293070000,-1398.382341,0.000394,30]
[423673586,1780293070000,-387.0,0.00039425,2]
[423673605,1780293070000,-2979.58307039,0.0003945,120]
[423673589,1780293070000,-296.0,0.00039448,120]
[423673618,1780293070000,-6952.36049758,0.0003945,120]
[423673623,1780293070000,-6952.36049758,0.0003945,120]
[423673620,1780293070000,-6952.36049758,0.0003945,120]
[423673625,1780293070000,-6952.36049758,0.0003945,120]
[423673624,1780293070000,-6952.36049758,0.0003945,120]
[423673627,1780293070000,-6952.36049758,0.0003945,120]
[423673628,1780293070000,-6952.36049758,0.0003945,120]
[423673626,1780293070000,-6952.36049758,0.0003945,120]
[423673629,1780293070000,-6952.36049758,0.0003945,120]
[423673630,1780293070000,-6952.36049758,0.0003945,120]
[423673632,1780293070000,-6952.36049758,0.0003945,120]
[423673631,1780293070000,-6952.36049758,0.0003945,120]
[423673634,1780293070000,-600.41155597,0.0003945,120]
[423673633,1780293070000,-6952.36,0.0003945,120]
[423673636,1780293070000,-600.41155597,0.0003945,120]
[423673637,1780293070000,-600.41155597,0.0003945,120]
[423673635,1780293070000,-600.41155597,0.0003945,120]
[423673646,1780293070000,-600.41155597,0.0003945,120]
[423673638,1780293070000,-600.41155597,0.0003945,120]
[423673640,1780293070000,-600.41155597,0.0003945,120]
[423673647,1780293070000,-600.41155597,0.0003945,120]
[423673641,1780293070000,-600.41155597,0.0003945,120]
[423673643,1780293070000,-600.41155597,0.0003945,120]
[423673642,1780293070000,-600.41155597,0.0003945,120]
[423673644,1780293070000,-600.41155597,0.0003945,120]
[423673639,1780293070000,-600.41155597,0.0003945,120]
[423673588,1780293070000,-350.0,0.00039435,6]
[423673616,1780293070000,-6952.36049758,0.0003945,120]
[423673621,1780293070000,-6952.36049758,0.0003945,120]
[423673645,1780293070000,-600.41155597,0.0003945,120]
[423673622,1780293070000,-6952.36049758,0.0003945,120]
[423673615,1780293070000,-6952.36049758,0.0003945,120]
[423673590,1780293070000,-3126.0,0.00039448,120]
[423673591,1780293070000,-499.0,0.00039448,120]
[423673595,1780293070000,-2979.58307039,0.0003945,120]
[423673587,1780293070000,-220.07056177,0.00039432,14]
[423673598,1780293070000,-2979.58307039,0.0003945,120]
[423673592,1780293070000,-363.0,0.00039448,120]
[423673597,1780293070000,-2979.58307039,0.0003945,120]
[423673596,1780293070000,-2979.58307039,0.0003945,120]
[423673593,1780293070000,-1622.0,0.00039448,120]
[423673600,1780293070000,-2979.58307039,0.0003945,120]
[423673610,1780293070000,-2979.58307039,0.0003945,120]
[423673599,1780293070000,-2979.58307039,0.0003945,120]
[423673601,1780293070000,-2979.58307039,0.0003945,120]
[423673594,1780293070000,-2979.58307039,0.0003945,120]
[423673607,1780293070000,-2979.58307039,0.0003945,120]
[423673602,1780293070000,-2979.58307039,0.0003945,120]
[423673614,1780293070000,-6952.36049758,0.0003945,120]
[423673612,1780293070000,-2979.58307039,0.0003945,120]
[423673613,1780293070000,-2979.58,0.0003945,120]
[423673611,1780293070000,-2979.58307039,0.0003945,120]
[423673617,1780293070000,-6952.36049758,0.0003945,120]
[423673619,1780293070000,-6952.36049758,0.0003945,120]
[423673606,1780293070000,-2979.58307039,0.0003945,120]
[423673609,1780293070000,-2979.58307039,0.0003945,120]
[423673648,1780293070000,-600.41155597,0.0003945,120]
[423673603,1780293070000,-2979.58307039,0.0003945,120]
[423673608,1780293070000,-2979.58307039,0.0003945,120]
[423673604,1780293070000,-2979.58307039,0.0003945,120]
[423673679,1780293071000,-1124.55961815,0.0003945,120]
[423673682,1780293071000,-1124.55961815,0.0003945,120]
[423673684,1780293071000,-1124.55961815,0.0003945,120]
[423673676,1780293071000,-1124.55961815,0.0003945,120]
[423673687,1780293071000,-1124.55961815,0.0003945,120]
[423673686,1780293071000,-1124.55961815,0.0003945,120]
[423673680,1780293071000,-1124.55961815,0.0003945,120]
[423673675,1780293071000,-1124.55961815,0.0003945,120]
[423673677,1780293071000,-1124.55961815,0.0003945,120]
[423673678,1780293071000,-1124.55961815,0.0003945,120]
[423673694,1780293071000,-2623.97244234,0.0003945,120]
[423673683,1780293071000,-1124.55961815,0.0003945,120]
[423673685,1780293071000,-1124.55961815,0.0003945,120]
[423673691,1780293071000,-1124.55961815,0.0003945,120]
[423673688,1780293071000,-1124.55961815,0.0003945,120]
[423673693,1780293071000,-1124.55,0.0003945,120]
[423673690,1780293071000,-1124.55961815,0.0003945,120]
[423673692,1780293071000,-1124.55961815,0.0003945,120]
[423673698,1780293071000,-2623.97244234,0.0003945,120]
[423673670,1780293071000,-1400.96029726,0.0003945,120]
[423673695,1780293071000,-2623.97244234,0.0003945,120]
[423673681,1780293071000,-1124.55961815,0.0003945,120]
[423673672,1780293071000,-1400.96029726,0.0003945,120]
[423673655,1780293071000,-1400.96029726,0.0003945,120]
[423673671,1780293071000,-1400.96029726,0.0003945,120]
[423673689,1780293071000,-1124.55961815,0.0003945,120]
[423673660,1780293071000,-1400.96029726,0.0003945,120]
[423673659,1780293071000,-1400.96029726,0.0003945,120]
[423673656,1780293071000,-1400.96029726,0.0003945,120]
[423673653,1780293071000,-600.41,0.0003945,120]
[423673651,1780293071000,-600.41155597,0.0003945,120]
[423673654,1780293071000,-1400.96029726,0.0003945,120]
[423673652,1780293071000,-600.41155597,0.0003945,120]
[423673650,1780293071000,-600.41155597,0.0003945,120]
[423673661,1780293071000,-1400.96029726,0.0003945,120]
[423673669,1780293071000,-1400.96029726,0.0003945,120]
[423673649,1780293071000,-600.41155597,0.0003945,120]
[423673658,1780293071000,-1400.96029726,0.0003945,120]
[423673662,1780293071000,-1400.96029726,0.0003945,120]
[423673663,1780293071000,-1400.96029726,0.0003945,120]
[423673673,1780293071000,-1400.96,0.0003945,120]
[423673664,1780293071000,-1400.96029726,0.0003945,120]
[423673666,1780293071000,-1400.96029726,0.0003945,120]
[423673665,1780293071000,-1400.96029726,0.0003945,120]
[423673667,1780293071000,-1400.96029726,0.0003945,120]
[423673674,1780293071000,-1124.55961815,0.0003945,120]
[423673668,1780293071000,-1400.96029726,0.0003945,120]
[423673657,1780293071000,-1400.96029726,0.0003945,120]
[423673696,1780293071000,-2623.97244234,0.0003945,120]
[423673707,1780293071000,-2623.97244234,0.0003945,120]
[423673697,1780293071000,-2623.97244234,0.0003945,120]
[423673728,1780293071000,-300.0,0.00039452,120]
[423673727,1780293071000,-300.0,0.00039452,120]
[423673729,1780293071000,-300.0,0.00039452,120]
[423673734,1780293071000,-300.0,0.00039452,120]
[423673732,1780293071000,-300.0,0.00039452,120]
[423673731,1780293071000,-300.0,0.00039452,120]
[423673733,1780293071000,-300.0,0.00039452,120]
[423673730,1780293071000,-300.0,0.00039452,120]
[423673736,1780293071000,-300.0,0.00039452,120]
[423673735,1780293071000,-300.0,0.00039452,120]
[423673738,1780293071000,-300.0,0.00039452,120]
[423673737,1780293071000,-300.0,0.00039452,120]
[423673741,1780293071000,-300.0,0.00039452,120]
[423673744,1780293071000,-300.0,0.00039452,120]
[423673742,1780293071000,-300.0,0.00039452,120]
[423673740,1780293071000,-300.0,0.00039452,120]
[423673739,1780293071000,-300.0,0.00039452,120]
[423673743,1780293071000,-300.0,0.00039452,120]
[423673746,1780293071000,-2731.9036926,0.00039452,120]
[423673747,1780293071000,-690.68165683,0.00039453,24]
[423673700,1780293071000,-2623.97244234,0.0003945,120]
[423673723,1780293071000,-3449.14412056,0.00039452,30]
[423673722,1780293071000,-3326.07919051,0.00039452,31]
[423673745,1780293071000,-410.740211,0.00039452,120]
[423673720,1780293071000,-3092.96547558,0.00039452,31]
[423673699,1780293071000,-2623.97244234,0.0003945,120]
[423673702,1780293071000,-2623.97244234,0.0003945,120]
[423673712,1780293071000,-2623.97244234,0.0003945,120]
[423673713,1780293071000,-2623.97,0.0003945,120]
[423673706,1780293071000,-2623.97244234,0.0003945,120]
[423673724,1780293071000,-2728.05883011,0.00039452,30]
[423673703,1780293071000,-2623.97244234,0.0003945,120]
[423673710,1780293071000,-2623.97244234,0.0003945,120]
[423673709,1780293071000,-2623.97244234,0.0003945,120]
[423673705,1780293071000,-2623.97244234,0.0003945,120]
[423673711,1780293071000,-2623.97244234,0.0003945,120]
[423673708,1780293071000,-2623.97244234,0.0003945,120]
[423673701,1780293071000,-2623.97244234,0.0003945,120]
[423673719,1780293071000,-2982.60894463,0.00039452,30]
[423673716,1780293071000,-2674.60743026,0.00039452,30]
[423673714,1780293071000,-656.55423328,0.00039452,120]
[423673718,1780293071000,-2876.18991768,0.00039452,30]
[423673717,1780293071000,-2773.56790518,0.00039452,30]
[423673715,1780293071000,-188.45645101,0.00039452,120]
[423673725,1780293071000,-300.0,0.00039452,120]
[423673721,1780293071000,-3207.40519818,0.00039452,30]
[423673726,1780293071000,-300.0,0.00039452,120]
[423673704,1780293071000,-2623.97244234,0.0003945,120]
[423673757,1780293072000,-165.63240352,0.00039453,24]
[423673758,1780293072000,-742.5,0.00039453,24]
[423673754,1780293072000,-271.552087,0.00038362,30]
[423673752,1780293072000,-553.35,0.00038269,90]
[423673753,1780293072000,-500.0,0.00038356,120]
[423673749,1780293072000,-939.32936317,0.00027397,10]
[423673755,1780293072000,-271.552093,0.00039393,30]
[423673751,1780293072000,-300.0,0.00035511,2]
[423673750,1780293072000,-5565.50063683,0.00027397,10]
[423673748,1780293072000,-334.08,0.00027397,10]
[423673756,1780293072000,-103868.77169708,0.00039453,24]
[423673764,1780293072000,-1324.41,0.00039453,24]
[423673762,1780293072000,-300.0,0.00035511,2]
[423673760,1780293072000,-1208.68179918,0.00039453,24]
[423673759,1780293072000,-1453.78224332,0.00039453,24]